Cogmind - Beta 15 @@@ ROGUE MODE // 2025.07.08 @ 00:47:04 Player: FrostySpirit Result: Destroyed by Y-45 Defender with Heavy Assault Rifle Performance ------------- Evolutions (1) 500 Regions Visited (3) 600 Robots Destroyed (20) 100 Value Destroyed (409) 409 Prototype IDs (0) 0 Alien Tech Used (0) 0 Bonus (0) 0 TOTAL SCORE: 1609 Bonus ------- None Cogmind --------- Core Integrity 0/400 Matter 500/500 Energy 91/100 System Corruption 2% Temperature Cool (9) Movement Core (250) Ox4 Location -9/Materials Parts ------- > --- POWER (1) -------- (None) > --- PROPULSION (2) --- (None) > --- UTILITY (4) ------ Medium Storage Unit High-capacity Matter Pod Power Shielding > --- WEAPON (2) ------- (None) > --- INVENTORY (10) --- Heat Sink Improved Heat Sink Structural Scanner Terrain Scanner ECM Suite Propulsion Shielding Tractor Beam Peak State ------------ > --- POWER ------------ Ion Engine > --- PROPULSION ------- Aluminum Leg Aluminum Leg > --- UTILITY ---------- Medium Storage Unit High-capacity Matter Pod ECM Suite ECM Suite > --- WEAPON ----------- Particle Gun Beam Cannon > --- INVENTORY -------- Light Treads Light Treads Aluminum Leg Improved Heat Sink Power Shielding Propulsion Shielding Tractor Beam Grenade Launcher [Rating: 11] Favorites ----------- Power Ion Engine Engine Ion Engine Propulsion Aluminum Leg Treads Light Treads Leg Aluminum Leg Utility High-capacity Matter Pod Device ECM Suite Storage High-capacity Matter Pod Protection Power Shielding Weapon Beam Cannon Energy Gun Particle Gun Energy Cannon Beam Cannon Ballistic Gun Assault Rifle Launcher Grenade Launcher Build | -11 -10 -10 -9 ------- Run | Yrd Mat Min Mat Slots Evolved 2 | . . . 2 Power . | . . . . Propulsion . | . . . . Utility 2 | . . . 2 Weapon . | . . . . Parts Attached 21 | 6 2 6 7 Power 2 | 1 . 1 . Engine 2 | 1 . 1 . Core . | . . . . Reactor . | . . . . Propulsion 7 | 2 . 3 2 Treads 2 | . . . 2 Leg 5 | 2 . 3 . Wheel . | . . . . Hover . | . . . . Flight . | . . . . Utility 6 | 1 1 1 3 Device 2 | . . . 2 Storage 3 | 1 1 1 . Processor . | . . . . Hackware . | . . . . Protection 1 | . . . 1 Artifact . | . . . . Weapon 6 | 2 1 1 2 Energy Gun 3 | 1 . 1 1 Energy Cannon 1 | . 1 . . Ballistic Gun 1 | 1 . . . Ballistic Cannon . | . . . . Launcher 1 | . . . 1 Special Weapon . | . . . . Impact Weapon . | . . . . Slashing Weapon . | . . . . Piercing Weapon . | . . . . Special Melee Weapon . | . . . . Unidentified Prototypes . | . . . . Parts Lost 12 | . . 2 10 Power 1 | . . . 1 Propulsion 5 | . . 1 4 Utility 1 | . . . 1 Weapon 5 | . . 1 4 Highest Loss Streak 9 | . . 1 9 To Critical Strikes . | . . . . Average Backups 7 | 4 7 7 7 Power . | . . . . Propulsion 2 | 2 4 2 2 Utility 3 | . . 4 4 Weapon 1 | 1 1 1 . Tool/Special . | . . . . Unused Backups 12 | . 5 1 6 Power 1 | . 1 . . Propulsion 4 | . 3 1 . Utility 6 | . . . 6 Weapon 1 | . 1 . . Tool/Special . | . . . . Average Slot Usage (%) 97 | . 95 99 95 Engine 12 | . 14 14 9 Leg 24 | . 27 27 20 Device 4 | . . . 12 Storage 25 | . 24 28 22 Protection 2 | . . . 8 Energy Gun 10 | . 14 8 10 Energy Cannon 10 | . 9 14 7 Ballistic Gun 3 | . 4 5 . Peak Build Rating 11 | 6 7 9 11 Average Rating 8 | 4 6 7 10 On Entrance 5 | . 6 7 9 Naked Turns . | . . . . Heaviest Build 29 | 14 19 25 29 Greatest Support 40 | 20 20 20 40 Greatest Overweight (x) 4 | . 1 1 4 Average Overweight (x) . | . . . . Largest Inventory Capacity 10 | 8 8 10 10 Average Capacity 8 | 6 8 8 10 Most Carried 10 | 6 8 9 10 Average Carried 7 | 4 7 7 7 Final Capacity 10 | 8 8 10 10 Final Carried 9 | 6 8 9 7 Class Distribution -------------------- 56% | Mutant 43% | Scavenger-Mutant Dominant Class ---------------- Mutant | -10/Materials Mutant | -10/Mines Scavenger-Mutant | -9/Materials Resources | -11 -10 -10 -9 ----------- Run | Yrd Mat Min Mat Matter Collected 692 | 247 193 154 98 Remotely . | . . . . Salvage Created 462 | . 15 179 268 Parts 38 | . 1 12 25 Haulers Intercepted . | . . . . Recyclers Shooed . | . . . . Parts Field Recycled . | . . . . Retrieved Matter . | . . . . Parts Self-Destructed . | . . . . Prevented . | . . . . Kills | -11 -10 -10 -9 ------- Run | Yrd Mat Min Mat Combat Hostiles Destroyed 14 | . . 6 8 Guns 6 | . . 3 3 Cannons 7 | . . 3 4 AOE 1 | . . . 1 Classes Destroyed 6 | . 1 2 3 Worker 2 | . . . 2 Builder 3 | . . . 3 Operator 1 | . 1 . . Swarmer 7 | . . 3 4 Grunt 5 | . . 3 2 Sentry 2 | . . . 2 Best Kill Streak 7 | . 1 3 7 Combat Bots Only 3 | . . 3 2 Max Kills in Single Turn 3 | . 1 1 3 Gunslinging . | . . . . Exploded 1 | . . . 1 Melee . | . . . . Uniques/NPCs Destroyed . | . . . . Combat | -11 -10 -10 -9 -------- Run | Yrd Mat Min Mat Hostile Shots Fired 211 | . 4 56 151 Missed 62 | . 1 18 43 Hits 149 | . 3 38 108 Projectile 149 | . 3 38 108 Critical Strikes 1 | . . . 1 Actively Blocked 1 | . . . 1 Damage Taken 1745 | . 34 394 1317 Core 480 | . . 67 413 Absorbed by Shields . | . . . . Redirected to Shielding 19 | . . . 19 Core Remaining (%) 86 | 100 . 73 . Volleys Fired 40 | . 1 21 18 Largest 2 | . 2 2 2 Hottest 125 | . 100 125 125 Shots Fired 76 | . 2 42 32 Gun 36 | . 1 21 14 Cannon 33 | . 1 21 11 Launcher 7 | . . . 7 Special . | . . . . Kinetic 8 | . . 8 . Thermal 52 | . 1 26 25 Explosive 7 | . . . 7 Electromagnetic 9 | . 1 8 . Robot Hit Streak 4 | . 1 4 4 Robot Miss Streak 7 | . . 7 2 Penetration Max . | . . . . Secondary Targets . | . . . . Shots Hit Robots 36 | . 1 18 17 Core Hits 33 | . 1 9 23 Critical Kills . | . . . . Critical Parts Destroyed . | . . . . Critical Strikes 1 | . . . 1 Burn 1 | . . . 1 Melee Attacks . | . . . . Impact . | . . . . Slashing . | . . . . Piercing . | . . . . Sneak Attacks . | . . . . Combat Hostiles . | . . . . Follow-up Attacks . | . . . . Damage Inflicted 888 | . 18 275 595 Guns 249 | . 18 134 97 Cannons 261 | . . 141 120 Explosions 376 | . . . 376 Melee . | . . . . Ramming 2 | . . . 2 Kinetic 51 | . . 51 . Thermal 421 | . . 204 217 Explosive 376 | . . . 376 Electromagnetic 38 | . 18 20 . Impact . | . . . . Slashing . | . . . . Piercing . | . . . . Highest Corruption 2 | . . . 2 Average Corruption 2 | . . . 2 Corruption Purged . | . . . . Corruption Blocked . | . . . . Overload Shots . | . . . . Overflow Damage 14 | . . . 14 Projectiles 14 | . . . 14 Explosions . | . . . . Melee . | . . . . Knockbacks . | . . . . Impact . | . . . . Kinetic . | . . . . Secondary . | . . . . Self-Inflicted Damage 17 | . . . 17 Shots 1 | . . . 1 Rammed 2 | . . . 2 Targets Rammed 2 | . . . 2 Kicked . | . . . . Crushed . | . . . . Highest Temperature 342 | . 39 342 108 Average Temperature 97 | . 20 147 31 Received Heat Transfer 510 | . 18 138 354 Effects 3 | . . 3 . Energy Bleed 2 | . . 2 . Interference 1 | . . 1 . Siege Activations . | . . . . Martial Activations . | . . . . Shielding Activations . | . . . . Robots Disrupted . | . . . . Combat Hostiles . | . . . . Robots Corrupted . | . . . . Combat Hostiles . | . . . . Parts Fried . | . . . . Impact Corruptions . | . . . . Robots Melted . | . . . . Combat Hostiles . | . . . . Parts Melted 3 | . . 1 2 Heat Transferred 999 | . . 444 555 Parts Sabotaged . | . . . . Parts Stolen . | . . . . Parts Stripped . | . . . . Power Chain Reactions . | . . . . Alert | -11 -10 -10 -9 ------- Run | Yrd Mat Min Mat Maximum Alert Level . | . . . . Low Security (%) 100 | 100 100 100 100 Level 1 . | . . . . Level 2 . | . . . . Level 3 . | . . . . Level 4 . | . . . . Level 5 . | . . . . High Security . | . . . . Max Security . | . . . . Peak Influence 172 | . 5 65 172 Initial 13 | . . . 13 Average 17 | . . 10 41 Influence Increases 474 | . 5 165 304 Destroy 0b10 Robot/C 280 | . . 120 160 Destroy 0b10 Robot/NC 30 | . 5 . 25 Destroy Leader 70 | . . 30 40 Successful Hack 10 | . . . 10 Disable Machine 30 | . . . 30 Destroy Structure 39 | . . . 39 Lose Combat Pursuer 15 | . . 15 . Influence Decreases 416 | . 5 131 280 Entered New Map 21 | . . . 21 Time Decay 295 | . 5 121 169 Lost Part 100 | . . 10 90 Squads Dispatched 1 | . . . 1 Investigation . | . . . . Extermination . | . . . . Reinforcement 1 | . . . 1 Assault . | . . . . Garrison . | . . . . Intercept . | . . . . Searches Triggered . | . . . . Construction Impeded . | . . . . Haulers Reinforced . | . . . . Active Scanning Responses . | . . . . Cargo Convoy Interrupts . | . . . . Stealth | -11 -10 -10 -9 --------- Run | Yrd Mat Min Mat Distress Signals 2 | . . . 2 Communications Jammed . | . . . . Distress Signals . | . . . . Times Spotted 34 | . 2 8 24 Peak Tracking Total 8 | . 1 3 8 Tactical Retreats 5 | . . 1 4 Traps | -11 -10 -10 -9 ------- Run | Yrd Mat Min Mat Traps Triggered 2 | . 1 . 1 Indirectly . | . . . . Trap Hack Attempts . | . . . . Triggered . | . . . . Disarmed . | . . . . Reprogrammed . | . . . . Reused . | . . . . Traps Extracted . | . . . . Installed . | . . . . Triggered . | . . . . Machines | -11 -10 -10 -9 ---------- Run | Yrd Mat Min Mat Machines Disabled 2 | . . . 2 Max in Single Turn 1 | . . . 1 Machines Repaired . | . . . . Machines Dismantled . | . . . . Machines Sabotaged . | . . . . Overloaded Fab Kills . | . . . . Hacking | -11 -10 -10 -9 --------- Run | Yrd Mat Min Mat Machines Accessed 2 | . 1 . 1 Terminals 2 | . 1 . 1 Fabricators . | . . . . Repair Stations . | . . . . Recycling Units . | . . . . Scanalyzers . | . . . . Garrison Access . | . . . . Total Hacks 4 | . 3 . 1 Successful 4 | . 3 . 1 Failed . | . . . . Catastrophic . | . . . . Database Lockouts . | . . . . Manual . | . . . . Terminals 4 | . 3 . 1 Fabricators . | . . . . Repair Stations . | . . . . Recycling Units . | . . . . Scanalyzers . | . . . . Garrison Access . | . . . . Terminal Hacks 4 | . 3 . 1 Record 3 | . 2 . 1 Zone Layout 1 | . 1 . . Fabricator Hacks . | . . . . Repair Station Hacks . | . . . . Recycling Unit Hacks . | . . . . Scanalyzer . | . . . . Garrison Access Hacks . | . . . . Unauthorized Hacks . | . . . . Terminals . | . . . . Fabricators . | . . . . Repair Stations . | . . . . Recycling Units . | . . . . Scanalyzers . | . . . . Garrison Access . | . . . . Data Cores Recovered 1 | . 1 . . Used . | . . . . Hacking Detections 1 | . 1 . . Full Trace Events . | . . . . Feedback Events . | . . . . Feedback Blocked . | . . . . Robot Schematics Acquired . | . . . . Robots Built . | . . . . Authchips . | . . . . Time . | . . . . Total Robot Build Rating . | . . . . Part Schematics Acquired . | . . . . Parts Built . | . . . . Authchips . | . . . . Time . | . . . . Total Part Build Rating . | . . . . Parts Repaired . | . . . . Time . | . . . . Parts Recycled . | . . . . Recycled Matter . | . . . . Retrieved Matter . | . . . . Retrieved Components . | . . . . Parts Scanalyzed . | . . . . Part Schematics Acquired . | . . . . Parts Damaged . | . . . . Bothacking | -11 -10 -10 -9 ------------ Run | Yrd Mat Min Mat Used RIF Installer . | . . . . Robots Hacked . | . . . . Non-combat . | . . . . Combat . | . . . . Robot Hacks Applied . | . . . . Relay Couplers Released . | . . . . Fabnet Peak Effective % . | . . . . Robots Rewired . | . . . . Allies Hacked . | . . . . Hacks Repelled . | . . . . Allies | -11 -10 -10 -9 -------- Run | Yrd Mat Min Mat Total Allies . | . . . . Largest Group . | . . . . Highest-Rated Group . | . . . . Highest-Rated Ally . | . . . . Total Orders . | . . . . Ally Attacks . | . . . . Total Damage . | . . . . Kills . | . . . . Allies Corrupted . | . . . . Allies Melted . | . . . . Intel | -11 -10 -10 -9 ------- Run | Yrd Mat Min Mat Active Infowar (turns) 500 | . . . 500 ECM 500 | . . . 500 Robot Analysis Total . | . . . . Derelict Logs Recovered . | . . . . Drone Launches . | . . . . Drone Recoveries . | . . . . Exploration | -11 -10 -10 -9 ------------- Run | Yrd Mat Min Mat Turns Passed 1690 | 114 343 701 532 Spaces Moved 1108 | 99 266 500 243 Core 34 | 31 . . 3 Treads 14 | . . . 14 Legs 1060 | 68 266 500 226 Wheels . | . . . . Hover . | . . . . Flight . | . . . . Fastest Speed 50 | 50 120 120 160 Average Speed 135 | 98 120 124 189 Slowest Speed 260 | 120 190 190 260 Overloaded Moves . | . . . . Propulsion Burnouts . | . . . . Robots Hopped . | . . . . Potential Cave-ins . | . . . . Cave-ins Triggered . | . . . . Exploration Rate (%) 29 | 5 32 62 19 Regions Visited 3 Branch Regions 1 Pre-discovered Areas . | . . . . Known Exits Taken . | . . . . Unknown Exits Taken 3 | 1 1 1 . Scrap Searched 1 | . . 1 . Spaces Dug . | . . . . Terrain Destroyed 51 | . . . 51 Melee . | . . . . Projectile . | . . . . AOE 51 | . . . 51 Terrain Rammed . | . . . . Walls Destroyed . | . . . . Machines Disabled . | . . . . Actions | -11 -10 -10 -9 --------- Run | Yrd Mat Min Mat Total 1220 | 116 286 536 282 Wait 7 | . 1 1 5 Move 1105 | 98 265 499 243 Hop . | . . . . Pick Up 27 | 12 8 3 4 Fast Attach 5 | . 3 1 1 Attach 14 | 6 1 1 6 Detach 1 | . . . 1 Swap 7 | . 1 5 1 Drop 12 | . 6 5 1 Fire 40 | . 1 21 18 Melee . | . . . . Ram . | . . . . Kick . | . . . . Crush 2 | . . . 2 Escape Stasis . | . . . . Rewire . | . . . . Trap . | . . . . Miscellaneous . | . . . . Route ------- -11/Scrapyard -10/Materials (discovered 2 exits: Mat / [*Min]) -10/Mines -9/Materials History --------- Turn | Location | Event 9 | -11/Scrapyard | Discovered new exit (range 16) 115 | -11/Scrapyard | Entered Materials 304 | -10/Materials | Build established: Mutant 325 | -10/Materials | Discovered new exit (range 15) 410 | -10/Materials | Discovered new exit (range 17) 458 | -10/Materials | Entered Mines 1139 | -10/Mines | Discovered new exit (range 7) 1159 | -10/Mines | Entered Materials 1159 | -9/Materials | Evolved 2 slots: Utility x2 1200 | -9/Materials | Build established: Scavenger-Mutant 1666 | -9/Materials | Core integrity fell below 50% 1687 | -9/Materials | Core integrity fell below 20% 1691 | -9/Materials | Destroyed by Y-45 Defender with Heavy Assault Rifle Last Messages --------------- 01648_ U-05 Engineer lays Concrete. 01649_ Triggered Shock Trap. 01649_ The floor emits a surge of raw power. 01649_ System corrupted (+2). 01650_ U-05 Engineer lays Concrete. 01652_ U-05 Engineer builds a Wall. 01658_ Grenade Launcher destroyed. 01659_ Dropped Aluminum Leg. 01661_ ECM Suite destroyed. 01669_ Acquired EM Shotgun. 01674_ EM Shotgun destroyed. 01682_ Slammed into S-10 Pest. 01683_ Lgt. Treads destroyed. 01683_ R-06 Scavenger collects Aluminum Leg. 01683_ Slammed into S-10 Pest. 01684_ Lgt. Treads destroyed. 01684_ S-10 Pest destroyed. 01685_ Acquired 8 matter. 01686_ R-06 Scavenger collects Lgt. Ion Engine. 01690_ R-06 Scavenger collects Flight Unit. Map ----- +----------------------------------------------------+ | | | | | ?????????????????????????????????????????????????? | | ?????????????????????????????????????????????????? | | ?????????????????????????????????????????????????? | | ?????????????????????????????????????????????????? | | ?????????????????????????????????????????????????? | | ?????????????????????????????????????????????????? | | ?????????????????????????????????????????????????? | | ?????????????????????????????????????????????????? | | ?????????????????????????????????????????????????? | | ?????????????????????????????????????????????????? | | ?????????????????????????????????????????????????? | | ?????????????????????????????????????????????????? | | ?????????????????????????????????????????????????? | | ?????????????????????????????????????????????????? | | ?????????????????????????????????????????????????? | | ?????????????????????????????????????????????????? | | ??????????????????????#######????????????????????? | | ??????????????????????# #####????????????????? | | ??????????????????????# ?????????????????? | | ??????????????????????# ??????????????????? | | ??????????????????????# w ???????????????????? | | ??????????????????????# [ #????##??????????????? | | ???????????????????????# ###### #??????????????? | | ???????????????????????# @ # ! #??????????????? | | ??????????????????###### Y# !! #??????????????? | | ??????????????????# ?# %ss ! #??????????????? | | ????????????????#### ###Yrs# #??????????????? | | ????????????????+ ^ # #??????????????? | | ?? ???????????# # #??????????????? | | ??# ######### #########??????????????? | | ??# #??????????????????????? | | ??# #######;#??????????????????????? | | ??# #????? ??????????????????????? | | ??# ########+####??? ??????????????????????? | | ???????????# #??? #?????????????????????? | | ???????????# """ #??? #?????????????????????? | | ???????????# """ #?? #?????????????????????? | | ???????????# """ #?? #?????????????????????? | | ???????????# #?? #?????????????????????? | | ???????????# """ #?? #???????? ????????????? | | ???????????# """ #??? +??????? ???????????? | | ??????????? "" #??? #?????? ?????????????? | | ??????????## #????? ?????? ?????????????? | | ???########## %######??????????? ??????????????? | | ???# = ###???????????? "" ??????????????? | | ?????""""" ############# "T ?????????????? | | ?????"""""" !%=| "" ????????? | | ?????""""""! * ????????? | +----------------------------------------------------+ Best States ------------- Heat Dissipation 28 Energy Generation 10 Energy Capacity 250 Matter Stores 500 Matter Capacity 500 Sight Range 16 Terrain Scan Density 10 ECM Strength 2 Power Shielding 33 Evasion (%) 55 Recoil Reduction 2 Item Schematics ----------------- None Robot Schematics ------------------ None Fabricated ------------ Nothing Repaired ---------- Nothing Alien Tech Used ----------------- None Achievements -------------- None Challenges ------------ None Game ------ Seed ArmoredSkeletonRedirector Manual? 0 Play Time 00:39:42 Cumulative 36.1 hours Start 2025.07.08 @ 00:06:27 End 2025.07.08 @ 00:47:04 Sessions 1 Manual Loads 0 Difficulty Rogue Special Mode None Game No. 62 Rogue 62 Adventurer 0 Explorer 0 Win Type - Total 0 Types 0/0/0/0/0/0/0/0/0/0 Lore% 14 Gallery% 33 Achievement% 27 Wizard Run 0 Options --------- Layout 1 ASCII 0 Keyboard 1 Movement Arrows Keybinds 0 Fullscreen 1 Font 24/Smallcaps Map View 50x35 Zoom Use 1% Tactical HUD 1 Map Filters NONE Filters NONE Steam 1 RUN: 2a5efec5-0caf-4a01-9a0e-de157bdc00bd